{"text_format":"3","workbook":"xlsx","n_sheets":2,"sheets":["Začiatok","Svadobný rozpočet"],"read":"whole","date_system":"1900"}

{"sheet":"Začiatok","index":0,"n_rows":7,"n_cols":2,"rows_kept":7}
[null,"INFORMÁCIE O TEJTO ŠABLÓNE"]
[null,"Pomocou tejto šablóny môžete zaznamenávať rôzne položky skutočných výdavkov na svadbu a porovnávať ich so sumami v rozpočte."]
[null,"V príslušných tabuľkách zadajte výdavky na oblečenie, dekorácie, darčeky, kvety, hudbu, fotografa, hostinu, grafické efekty, dopravu a rôzne iné položky."]
[null,"Celkové odhadované a celkové skutočné výdavky sa vypočítavajú automaticky."]
[null,"Poznámka: "]
[null,"Ďalšie pokyny sú uvedené v stĺpci A v hárku SVADOBNÝ ROZPOČET. Tento text je zámerne skrytý. Ak chcete text odstrániť, vyberte stĺpec A a potom stlačte kláves DELETE. Ak chcete text zobraziť, vyberte stĺpec A a potom zmeňte farbu písma."]
[null,"Ak chcete získať ďalšie informácie o tabuľkách, v tabuľke stlačte kláves SHIFT a potom kláves F10, vyberte možnosť TABUĽKA a potom vyberte položku ALTERNATÍVNY TEXT."]

{"sheet":"Svadobný rozpočet","index":1,"n_rows":93,"n_cols":4,"rows_kept":93,"merged":[[0,1,0,3],[2,1,2,3],[6,1,6,3],[15,1,15,3],[25,1,25,3],[34,1,34,3],[43,1,43,3],[50,1,50,3],[59,1,59,3],[68,1,68,3],[77,1,77,3],[85,1,85,3]]}
[null,"SVADOBNÝ ROZPOČET"]
[]
[null,"CELKOVÉ VÝDAVKY "]
[null,"Položka ","Odhadované","Skutočné"]
[null,"Celkové výdavky ",{"$f":"SUM(Oblečenie[[#Totals],[Odhadované]],Výzdoba[[#Totals],[Odhadované]],Dary[[#Totals],[Odhadované]],Kvety[[#Totals],[Odhadované]],Hudba[[#Totals],[Odhadované]],Fotografie[[#Totals],[Odhadované]],Hostina[[#Totals],[Odhadované]],PapierenskýTovarATlač[[#Totals],[Odhadované]],Doprava[[#Totals],[Odhadované]],ĎalšieVýdavky[[#Totals],[Odhadované]])","v":0},{"$f":"SUM(Oblečenie[[#Totals],[Skutočné]],Výzdoba[[#Totals],[Skutočné]],Dary[[#Totals],[Skutočné]],Kvety[[#Totals],[Skutočné]],Hudba[[#Totals],[Skutočné]],Fotografie[[#Totals],[Skutočné]],Hostina[[#Totals],[Skutočné]],PapierenskýTovarATlač[[#Totals],[Skutočné]],Doprava[[#Totals],[Skutočné]],ĎalšieVýdavky[[#Totals],[Skutočné]],)","v":0}]
[]
[null,"OBLEČENIE"]
[null,"Položka ","Odhadované","Skutočné"]
[null,"Zásnubný prsteň"]
[null,"Obrúčky"]
[null,"Svadobné šaty"]
[null,"Závoj alebo ozdoba hlavy"]
[null,"Iné:"]
[null,"Spolu za oblečenie",{"$f":"SUBTOTAL(109,Oblečenie[Odhadované])","v":0},{"$f":"SUBTOTAL(109,Oblečenie[Skutočné])","v":0}]
[]
[null,"DEKORÁCIE"]
[null,"Položka ","Odhadované","Skutočné"]
[null,"Mašle na lavice v kostole a iné stoličky"]
[null,"Výzdoba stredov stolov (okrem kvetov)"]
[null,"Sviečky"]
[null,"Osvetlenie"]
[null,"Balóny"]
[null,"Iné:"]
[null,"Spolu za výzdobu",{"$f":"SUBTOTAL(109,Výzdoba[Odhadované])","v":0},{"$f":"SUBTOTAL(109,Výzdoba[Skutočné])","v":0}]
[]
[null,"DARY"]
[null,"Položka ","Odhadované","Skutočné"]
[null,"Účastníci"]
[null,"Nevesta a ženích"]
[null,"Rodičia"]
[null,"Čítajúci/iní účastníci"]
[null,"Iné:"]
[null,"Spolu za dary",{"$f":"SUBTOTAL(109,Dary[Odhadované])","v":0},{"$f":"SUBTOTAL(109,Dary[Skutočné])","v":0}]
[]
[null,"KVETY"]
[null,"Položka ","Odhadované","Skutočné"]
[null,"Kytice"]
[null,"Pierka"]
[null,"Náramky na ruku"]
[null,"Obrad"]
[null,"Iné:"]
[null,"Spolu za kvety",{"$f":"SUBTOTAL(109,Kvety[Odhadované])","v":0},{"$f":"SUBTOTAL(109,Kvety[Skutočné])","v":0}]
[]
[null,"HUDBA"]
[null,"Položka ","Odhadované","Skutočné"]
[null,"Hudobníci na obrad"]
[null,"Kapela alebo dídžej na hostinu"]
[null,"Iné:"]
[null,"Spolu za hudbu",{"$f":"SUBTOTAL(109,Hudba[Odhadované])","v":0},{"$f":"SUBTOTAL(109,Hudba[Skutočné])","v":0}]
[]
[null,"FOTOGRAFOVANIE"]
[null,"Položka ","Odhadované","Skutočné"]
[null,"Oficiálne"]
[null,"Momentky"]
[null,"Ďalšie výtlačky"]
[null,"Fotoalbumy"]
[null,"Iné:"]
[null,"Spolu za fotografovanie",{"$f":"SUBTOTAL(109,Fotografie[Odhadované])","v":0},{"$f":"SUBTOTAL(109,Fotografie[Skutočné])","v":0}]
[]
[null,"HOSTINA "]
[null,"Položka ","Odhadované","Skutočné"]
[null,"Poplatok za miestnosť/sálu"]
[null,"Stoly a stoličky"]
[null,"Strava"]
[null,"Obrusy"]
[null,"Iné:"]
[null,"Spolu za hostinu (okrem hudby a výzdoby)",{"$f":"SUBTOTAL(109,Hostina[Odhadované])","v":0},{"$f":"SUBTOTAL(109,Hostina[Skutočné])","v":0}]
[]
[null,"PÍSACIE POTREBY A TLAČ"]
[null,"Položka ","Odhadované","Skutočné"]
[null,"Pozvánky"]
[null,"Oznámenia"]
[null,"Poďakovania"]
[null,"Osobné písacie potreby"]
[null,"Iné:"]
[null,"Spolu za písacie potreby a tlač",{"$f":"SUBTOTAL(109,PapierenskýTovarATlač[Odhadované])","v":0},{"$f":"SUBTOTAL(109,PapierenskýTovarATlač[Skutočné])","v":0}]
[]
[null,"DOPRAVA"]
[null,"Položka ","Odhadované","Skutočné"]
[null,"Limuzíny alebo autá"]
[null,"Parkovanie"]
[null,"Taxíky"]
[null,"Iné:"]
[null,"Spolu za dopravu",{"$f":"SUBTOTAL(109,Doprava[Odhadované])","v":0},{"$f":"SUBTOTAL(109,Doprava[Skutočné])","v":0}]
[]
[null,"ĎALŠIE VÝDAVKY"]
[null,"Položka ","Odhadované","Skutočné"]
[null,"Sobášiaca osoba"]
[null,"Poplatok za kostol alebo obrad"]
[null,"Starejší"]
[null,"Skúšobná večera"]
[null,"Iné:"]
[null,"Spolu za ďalšie výdavky",{"$f":"SUBTOTAL(109,ĎalšieVýdavky[Odhadované])","v":0},{"$f":"SUBTOTAL(109,ĎalšieVýdavky[Skutočné])","v":0}]